Cogmind - Beta 13 X1 @@@ ROGUE MODE // 2023.09.15 @ 23:23:49 Player: VR-DUX Result: Destroyed by MAIN.C with Heavy Quantum Rifle Performance ------------- Evolutions (9) 4500 Regions Visited (32) 6400 Robots Destroyed (152) 760 Value Destroyed (3411) 3411 Prototype IDs (72) 1440 Alien Tech Used (2) 400 Bonus (12529) 12529 TOTAL SCORE: 29440 Bonus ------- Triggered Max Security 1000 High Alert Combat Kills 250 Follower Combat Kills 166 Aligned with FarCom 300 Met Data Miner 300 Met Imprinter 300 Met Zhirov 300 Met Warlord at Base 500 MAIN.C Attacked Warlord 500 Met Warlord at Research 2000 Met MAIN.C 5000 Met Warlord at Command 2000 Friendly Fire -87 Cogmind --------- Core Integrity 0/1600 Matter 285/300 Energy 80/100 System Corruption 6% Temperature Cool (18) Movement Core (50) Location -1/Command Parts ------- > --- POWER (2) -------- (None) > --- PROPULSION (11) -- (None) > --- UTILITY (10) ----- Spectral Analyzer Hacking Suite Advanced Hacking Suite Experimental Hacking Suite > --- WEAPON (2) ------- (None) > --- INVENTORY (5) ---- Light Particle Reactor Micro Antimatter Reactor Peak State ------------ > --- POWER ------------ Micro Antimatter Reactor Light Quantum Reactor > --- PROPULSION ------- Cooled Nuclear Pulse Thruster Cooled Nuclear Pulse Thruster Field Propulsion Array Field Propulsion Array Field Propulsion Array Improved Diametric Drive Impulse Thruster Array > --- UTILITY ---------- Advanced Power Amplifier Large Storage Unit Spectral Analyzer Advanced Transmission Jammer Experimental Cloaking Device Hacking Suite Advanced Hacking Suite Advanced Hacking Suite Experimental Hacking Suite Advanced System Shield > --- WEAPON ----------- Enhanced Nova Cannon Thunder Hammer > --- INVENTORY -------- Micro Fission Core Quantum Reactor Light Quantum Reactor Cooled Nuclear Pulse Thruster Impulse Thruster Field Propulsion Array Mobile Refinery Mk. CCLXVII Transdimensional Reconstructor Compact HERF Cannon Vortex Cannon Vortex Cannon Ragnarok Missile Launcher [Rating: 187] Favorites ----------- Power Ion Engine Engine Ion Engine Power Core Micro Nuclear Core Reactor Micro Antimatter Reactor Propulsion Light Treads Treads Light Treads Leg Aluminum Leg Wheel Compact Wheel Hover Unit Aerolev Unit Flight Unit Cooled Nuclear Pulse Thruster Utility Huge Storage Unit Device Structural Scanner Storage Huge Storage Unit Processor Signal Interpreter Hackware Advanced Hacking Suite Protection Light Armor Plating Weapon Improved Assault Rifle Energy Gun Backup Laser III Energy Cannon Enhanced Nova Cannon Ballistic Gun Improved Assault Rifle Ballistic Cannon Light Cannon Launcher Mini Grenade Launcher Impact Weapon Thunder Hammer Slashing Weapon Greatsword Piercing Weapon Lance Build | -11 -10 -10 -9 -9 -9 -8 -8 -7 -7 -7 -7 -6 -6 -6 -6 -6 -5 -5 -5 -5 -5 -4 -4 -4 -4 -4 -3 -3 -2 -2 -1 -1 ------- Run | Jun Mat Min Mat Min Exi Min Mat Fac Low Low Dat Pro Fac Low Low Zio Pro Fac Upp Upp Zhi Pro Fac Upp Upp War Pro Res Res Tes Acc Com Slots Evolved 18 | . . . 2 . . . 2 2 . . . . 2 . . . . 2 . . . . 2 . . . . 2 2 . 2 . Power 1 | . . . . . . . . . . . . . . . . . . . . . . . . . . . . 1 . . . . Propulsion 9 | . . . 1 . . . 2 1 . . . . 1 . . . . 1 . . . . 1 . . . . . 1 . 1 . Utility 8 | . . . 1 . . . . 1 . . . . 1 . . . . 1 . . . . 1 . . . . 1 1 . 1 . Weapon . | . . . . . . . . . . . . . . . . . . . . . . . . . . . . . . . . . Parts Attached 298 | . 12 12 41 4 3 . 18 21 4 1 1 2 6 2 4 4 . 6 . . 17 1 9 1 3 12 . 20 14 15 14 51 Power 38 | . . 3 3 . . . 1 1 . . . . 1 . . . . . . . 4 1 1 . . . . 3 2 1 5 12 Engine 14 | . . 3 3 . . . . . . . . . 1 . . . . . . . 3 1 . . . . . 1 . . . 2 Core 7 | . . . . . . . 1 1 . . . . . . . . . . . . . . 1 . . . . 1 . . . 3 Reactor 17 | . . . . . . . . . . . . . . . . . . . . . 1 . . . . . . 1 2 1 5 7 Propulsion 81 | . 3 3 17 2 3 . 3 1 . . . . 1 . . . . 4 . . 8 . 1 . . 2 . 5 1 3 4 20 Treads 25 | . 2 1 15 2 3 . . . . . . . . . . . . . . . . . . . . . . . . . . 2 Leg . | . . . . . . . . . . . . . . . . . . . . . . . . . . . . . . . . . Wheel 5 | . 1 2 . . . . 1 . . . . . . . . . . . . . . . . . . . . . . . . 1 Hover 1 | . . . 1 . . . . . . . . . . . . . . . . . . . . . . . . . . . . . Flight 50 | . . . 1 . . . 2 1 . . . . 1 . . . . 4 . . 8 . 1 . . 2 . 5 1 3 4 17 Utility 100 | . 4 1 12 . . . 4 15 . . 1 2 4 . 1 3 . 2 . . 5 . 4 1 . 5 . 10 11 2 4 9 Device 51 | . . . 8 . . . 3 7 . . . . 2 . . 1 . 1 . . 1 . 1 . . 3 . 5 8 2 3 6 Storage 7 | . 3 . . . . . 1 2 . . . . . . . . . . . . . . . . . . . 1 . . . . Processor 8 | . . . 1 . . . . 1 . . . 1 . . . . . . . . . . 1 . . 1 . . . . . 3 Hackware 10 | . . . . . . . . . . . . . . . . . . . . . . . 2 . . . . 4 3 . 1 . Protection 24 | . 1 1 3 . . . . 5 . . 1 1 2 . 1 2 . 1 . . 4 . . 1 . 1 . . . . . . Artifact . | . . . . . . . . . . . . . . . . . . . . . . . . . . . . . . . . . Weapon 79 | . 5 5 9 2 . . 10 4 4 1 . . . 2 3 1 . . . . . . 3 . 3 5 . 2 . 9 1 10 Energy Gun 3 | . . . . . . . . . . . . . . . . . . . . . . . . . . . . . . 1 . 2 Energy Cannon 10 | . . . 1 . . . . . . . . . . . . . . . . . . . . . . 2 . . . 2 1 4 Ballistic Gun 17 | . 2 2 5 1 . . 6 . . . . . . . . . . . . . . . . . . . . . . . . 1 Ballistic Cannon 3 | . 2 1 . . . . . . . . . . . . . . . . . . . . . . . . . . . . . . Launcher 18 | . 1 2 . 1 . . 1 1 2 . . . . 1 2 . . . . . . . 2 . 1 1 . . . 3 . . Special Weapon . | . . . . . . . . . . . . . . . . . . . . . . . . . . . . . . . . . Impact Weapon 12 | . . . 3 . . . 3 . . . . . . . . . . . . . . . . . 1 1 . . . 1 . 3 Slashing Weapon 11 | . . . . . . . . 3 2 1 . . . 1 1 1 . . . . . . 1 . 1 . . . . . . . Piercing Weapon 5 | . . . . . . . . . . . . . . . . . . . . . . . . . . 1 . 2 . 2 . . Special Melee Weapon . | . . . . . . . . . . . . . . . . . . . . . . . . . . . . . . . . . Unidentified Prototypes 24 | . . . 5 . . . . . . . . . 1 . . 1 . . . . 4 . . . . 6 . . . 5 1 1 Parts Lost 60 | . . 4 5 . . . . 2 . . . . . . . . . . . . . . 1 1 1 . . 2 . 1 2 41 Power 12 | . . 1 2 . . . . . . . . . . . . . . . . . . . 1 . . . . . . 1 1 6 Propulsion 24 | . . . 1 . . . . . . . . . . . . . . . . . . . . . 1 . . . . . . 22 Utility 15 | . . 1 1 . . . . 1 . . . . . . . . . . . . . . . 1 . . . 2 . . 1 8 Weapon 9 | . . 2 1 . . . . 1 . . . . . . . . . . . . . . . . . . . . . . . 5 Highest Loss Streak 16 | . . 4 4 . . . . 1 . . . . . . . . . . . . . . 1 1 1 . . 2 . 1 1 16 To Critical Strikes . | . . . . . . . . . . . . . . . . . . . . . . . . . . . . . . . . . Average Slot Usage (%) 86 | . 99 94 96 100 99 100 71 69 68 69 69 69 73 73 73 72 73 69 70 70 73 88 83 86 80 91 92 86 85 85 82 61 Engine 7 | . 14 13 10 11 11 11 2 . . . . . 4 6 6 6 6 5 5 5 5 5 2 . . . . 4 . . . . Core 1 | . . . . . . . 6 7 7 7 7 7 1 . . . . . . . . . 2 5 5 5 5 2 . . . . Treads 14 | . 21 21 32 33 32 33 5 . . . . . . . . . . . . . . . . . . . . . . . . . Wheel 1 | . 3 6 . . . . . . . . . . . . . . . . . . . . . . . . . . . . . . Flight 12 | . . . . . . . 14 22 23 23 23 23 26 26 26 26 26 22 23 23 27 41 42 42 39 41 42 30 30 30 27 18 Device 6 | . . . 10 . . . 6 7 7 7 7 7 13 13 13 15 13 17 17 17 17 17 12 5 5 9 10 7 7 7 13 8 Storage 9 | . 15 14 11 11 11 11 9 7 7 7 7 7 6 6 6 6 6 5 5 5 5 5 5 5 5 5 5 4 4 4 4 2 Processor 5 | . . . 8 11 11 11 5 4 7 7 7 . . . . . . . . . . . 1 5 5 9 10 9 7 4 4 6 Hackware 3 | . . . . . . . . . . . . . . . . . . . . . . . . 10 10 10 10 15 17 21 18 14 Protection 6 | . 12 9 . 11 11 11 2 6 7 7 7 15 12 13 13 10 13 11 11 11 9 11 10 7 5 . . . . . . . Ballistic Gun 9 | . 17 9 17 16 22 22 13 1 . . . . . . . . . . . . . . . . . . . . . . . . Launcher 3 | . 9 14 . 5 . . . 2 . . . . . . 4 . . . . . . . . 5 4 . 3 . . . . . Slashing Weapon 1 | . . . . . . . . 6 5 7 7 7 6 5 1 5 6 5 5 5 5 5 4 . . . . . . . . . Naked Turns . | . . . . . . . . . . . . . . . . . . . . . . . . . . . . . . . . . Heaviest Build 96 | 14 94 91 96 96 96 96 96 40 39 39 40 40 44 44 44 47 47 49 48 48 48 43 43 35 35 38 32 40 56 63 74 80 Greatest Support 86 | 20 40 40 64 64 64 64 64 60 60 60 60 60 66 66 66 66 66 74 74 74 75 48 43 53 37 47 66 72 80 80 86 85 Greatest Overweight (x) 31 | . 5 5 5 1 31 1 9 . . . . . . . . . . . . . . . . . . . . . . . . 2 Average Overweight (x) . | . 2 3 1 1 1 1 . . . . . . . . . . . . . . . . . . . . . . . . . . Largest Inventory Capacity 25 | 8 25 25 25 25 25 25 25 25 15 15 15 15 15 15 15 15 15 15 15 15 15 15 15 15 15 15 15 15 15 15 15 15 Average Capacity 19 | 8 23 25 25 25 25 25 17 15 15 15 15 15 15 15 15 15 15 15 15 15 15 15 15 15 15 15 15 15 15 15 15 11 Most Carried 25 | 6 25 25 25 25 25 25 25 15 15 15 15 15 15 15 15 15 15 15 15 15 15 15 15 14 15 15 15 15 15 15 14 15 Average Carried 18 | 6 20 24 24 24 24 24 16 14 14 14 14 14 14 14 13 13 15 14 14 15 14 14 12 13 13 14 14 14 14 14 12 10 Final Capacity 25 | 8 25 25 25 25 25 25 15 15 15 15 15 15 15 15 15 15 15 15 15 15 15 15 15 15 15 15 15 15 15 15 15 5 Final Carried 25 | 6 24 23 25 24 25 25 14 13 15 15 14 15 15 15 14 15 15 15 15 15 15 14 13 13 14 14 15 15 15 14 12 2 Class Distribution -------------------- 57% | Mutant 12% | Infiltrator-Sprinter 12% | Hacker-Sprinter 4% | Hacker-Ninja 4% | Scavenger-Mutant Dominant Class ---------------- Mutant | -10/Materials Mutant | -10/Mines Mutant | -9/Materials Mutant | -9/Mines Mutant | -9/Exiles Mutant | -8/Mines Mutant | -8/Materials Mutant | -7/Factory Mutant | -7/Lower Caves Mutant | -7/Lower Caves Mutant | -7/Data Miner Mutant | -6/Proximity Caves Infiltrator-Sprinter | -6/Factory Infiltrator-Sprinter | -6/Lower Caves Infiltrator-Sprinter | -6/Lower Caves Infiltrator-Sprinter | -6/Zion Infiltrator-Sprinter | -5/Proximity Caves Infiltrator-Mutant | -5/Factory Infiltrator-Sprinter | -5/Upper Caves Infiltrator-Sprinter | -5/Upper Caves Infiltrator-Sprinter | -5/Zhirov Infiltrator-Sprinter | -4/Proximity Caves Infiltrator-Sprinter | -4/Factory Hacker-Sprinter | -4/Upper Caves Hacker-Sprinter | -4/Upper Caves Hacker-Sprinter | -4/Warlord Hacker-Sprinter | -3/Proximity Caves Hacker-Sprinter | -3/Research Hacker-Ninja | -2/Research Wizard-Ninja | -2/Testing Wizard-Ninja | -1/Access Hacker-Sprinter | -1/Command Resources | -11 -10 -10 -9 -9 -9 -8 -8 -7 -7 -7 -7 -6 -6 -6 -6 -6 -5 -5 -5 -5 -5 -4 -4 -4 -4 -4 -3 -3 -2 -2 -1 -1 ----------- Run | Jun Mat Min Mat Min Exi Min Mat Fac Low Low Dat Pro Fac Low Low Zio Pro Fac Upp Upp Zhi Pro Fac Upp Upp War Pro Res Res Tes Acc Com Matter Collected 5085 | 200 506 410 950 422 92 12 205 262 41 15 . 94 60 60 22 88 . . 34 . 196 16 128 58 102 110 . 69 276 150 50 457 Remotely . | . . . . . . . . . . . . . . . . . . . . . . . . . . . . . . . . . Salvage Created 5395 | . 456 112 1427 426 . 113 112 417 91 . . 12 340 144 24 . . . 16 . 313 . 45 70 66 . . 163 424 . 76 548 Parts 280 | . 30 4 87 24 . 7 3 24 7 . . . 16 8 2 . . . 1 . 2 . 3 5 5 . . 21 19 . . 12 Haulers Intercepted 12 | . 1 . 5 . . . 1 3 . . . . 1 . . . . . . . . . . . . . . . . . 1 . Recyclers Shooed 6 | . 4 . . 1 . . 1 . . . . . . . . . . . . . . . . . . . . . . . . . Parts Field Recycled . | . . . . . . . . . . . . . . . . . . . . . . . . . . . . . . . . . Retrieved Matter . | . . . . . . . . . . . . . . . . . . . . . . . . . . . . . . . . . Parts Self-Destructed 25 | . . . . . . . . . 5 . . 5 . 5 . . . . . . 2 . . 5 3 . . . . . . . Prevented 1 | . . . . . . . . . . . . . . . . . . . . . . . . 1 . . . . . . . . Kills | -11 -10 -10 -9 -9 -9 -8 -8 -7 -7 -7 -7 -6 -6 -6 -6 -6 -5 -5 -5 -5 -5 -4 -4 -4 -4 -4 -3 -3 -2 -2 -1 -1 ------- Run | Jun Mat Min Mat Min Exi Min Mat Fac Low Low Dat Pro Fac Low Low Zio Pro Fac Upp Upp Zhi Pro Fac Upp Upp War Pro Res Res Tes Acc Com Combat Hostiles Destroyed 86 | . 9 11 27 11 . . . . 3 . . 1 . 4 2 . . . . . . . 4 6 5 . . . . . . 3 Melee 1 | . . . . . . . . . . . . 1 . . . . . . . . . . . . . . . . . . . . Guns 35 | . 4 . 27 4 . . . . . . . . . . . . . . . . . . . . . . . . . . . . Cannons 4 | . 1 1 . . . . . . . . . . . . . . . . . . . . . . . . . . . . . 2 AOE 45 | . 4 10 . 7 . . . . 3 . . . . 4 2 . . . . . . . 4 6 5 . . . . . . . Classes Destroyed 17 | . 7 3 2 . . . . . 1 . . 1 . . . . . . . . . . . . . . . 1 . . . 2 Worker 25 | . 2 . 1 . . . . 6 . . . . 1 . . . . . . . . . . . . . . 3 . . . 12 Builder 12 | . 2 . 2 . . 1 . 5 . . . . . . . . . . . . . . . . . . . 1 1 . . . Tunneler 1 | . . 1 . . . . . . . . . . . . . . . . . . . . . . . . . . . . . . Hauler 12 | . 1 . 5 . . . 1 3 . . . . 1 . . . . . . . . . . . . . . . . . 1 . Recycler 14 | . 1 1 1 2 . 1 1 1 . . . . 2 . . . . . . . . . . . . . . . 2 . . 2 Mechanic 1 | . . . . . . . . . . . . . . . . . . . . . . . . . . . . 1 . . . . Operator 5 | . 1 . . . . . . 2 . . . . . . . . . . . . . . . . . . . 1 . . . 1 Drone 1 | . . . . . . . . . . . . 1 . . . . . . . . . . . . . . . . . . . . Watcher 6 | . 1 . 2 . . . . . . . . . 1 . . . . . . . . . . . . . . . 2 . . . Swarmer 35 | . . . 8 3 . . . . 3 . . . . 4 2 . . . . . . . 4 6 5 . . . . . . . Grunt 29 | . 9 . 12 8 . . . . . . . . . . . . . . . . . . . . . . . . . . . . Sentry 7 | . . . 7 . . . . . . . . . . . . . . . . . . . . . . . . . . . . . Demolisher 1 | . . 1 . . . . . . . . . . . . . . . . . . . . . . . . . . . . . . Combat Programmer 2 | . . . . . . . . . . . . . . . . . . . . . . . . . . . . . . . . 2 Decomposer 1 | . . . . . . . . . . . . . . . . . . . 1 . . . . . . . . . . . . . Samaritan 4 | . . . . . . . . . 1 . . . . 2 . . . . . . . . . . . . . . 1 . . . Assembled 10 | . . 10 . . . . . . . . . . . . . . . . . . . . . . . . . . . . . . Fireman 1 | . . . . . . . . . . . . . . . . . . . . . . . . . . . . . . . . 1 Best Kill Streak 8 | . 3 4 8 3 . 2 1 4 3 . . 1 2 4 2 . . . . . . . 4 3 5 . . 2 4 . 1 4 Combat Bots Only 5 | . 2 4 4 3 . . . . 3 . . 1 . 4 2 . . . . . . . 4 3 5 . . . . . . 2 Max Kills in Single Turn 3 | . 2 2 2 2 . 1 1 2 2 . . 1 1 3 2 . . . 1 . . . 2 3 3 . . 1 1 . 1 1 Gunslinging 1 | . . . 1 1 . . . . . . . . . . . . . . . . . . . . . . . . . . . . Exploded 3 | . 2 2 . 1 . . . . 2 . . . . 2 2 . . . . . . . 2 3 3 . . . . . . . Melee 1 | . . . . . . . . . . . . 1 . . . . . . . . . . . . . . . . . . . . Uniques/NPCs Destroyed . | . . . . . . . . . . . . . . . . . . . . . . . . . . . . . . . . . Combat | -11 -10 -10 -9 -9 -9 -8 -8 -7 -7 -7 -7 -6 -6 -6 -6 -6 -5 -5 -5 -5 -5 -4 -4 -4 -4 -4 -3 -3 -2 -2 -1 -1 -------- Run | Jun Mat Min Mat Min Exi Min Mat Fac Low Low Dat Pro Fac Low Low Zio Pro Fac Upp Upp Zhi Pro Fac Upp Upp War Pro Res Res Tes Acc Com Damage Taken 11901 | . 280 598 1433 431 . . 62 839 85 . . 229 26 48 121 . 62 . 55 40 . 211 166 227 95 . 368 149 71 438 327 5540 Core 2309 | . 49 99 146 49 . . . 93 . . . 25 . . 20 . . . . 24 . . . 16 . . 116 18 . 83 43 1528 Absorbed by Shields . | . . . . . . . . . . . . . . . . . . . . . . . . . . . . . . . . . Redirected to Shielding 161 | . . . . . . . . 3 . . . 12 8 . 17 . . . 11 7 . 16 25 62 . . . . . . . . Regen/Repaired (Parts) 22 | . . . . . . . . . . . . . . . . . . . . . . . . . . 22 . . . . . . Core Remaining (%) 84 | 100 . 40 . . . 51 100 . . . . 83 . . . . 97 . . . . 97 . . . . 88 98 . 94 . . Volleys Fired 311 | . 55 28 95 28 . 2 7 4 6 . . . . 5 2 . . . . . . . 3 8 5 . . . . 3 8 52 Largest 2 | . 2 2 2 2 . 2 2 1 1 . . . . 1 1 . . . . . . . 1 1 1 . . . . 1 1 2 Hottest 214 | . 70 40 46 46 . 46 46 30 30 . . . . 30 30 . . . . . . . 30 30 30 . . . . 50 120 214 Shots Fired 468 | . 96 29 190 38 . 4 12 4 6 . . . . 5 2 . . . . . . . 3 8 5 . . . . 3 8 55 Gun 308 | . 64 6 190 28 . 4 10 . . . . . . . . . . . . . . . . . . . . . . . . 6 Cannon 87 | . 22 5 . . . . . . . . . . . . . . . . . . . . . . . . . . . 3 8 49 Launcher 73 | . 10 18 . 10 . . 2 4 6 . . . . 5 2 . . . . . . . 3 8 5 . . . . . . . Special . | . . . . . . . . . . . . . . . . . . . . . . . . . . . . . . . . . Kinetic 333 | . 86 11 190 28 . 4 10 . . . . . . . . . . . . . . . . . . . . . . . . 4 Thermal 51 | . . . . . . . . . . . . . . . . . . . . . . . . . . . . . . . 8 43 Explosive 73 | . 10 18 . 10 . . 2 4 6 . . . . 5 2 . . . . . . . 3 8 5 . . . . . . . Electromagnetic 3 | . . . . . . . . . . . . . . . . . . . . . . . . . . . . . . . . 3 Entropic 8 | . . . . . . . . . . . . . . . . . . . . . . . . . . . . . . 3 . 5 Robot Hit Streak 29 | . 5 4 29 7 . 6 5 . 3 . . . . 1 1 . . . . . . . . 2 . . . . . 1 2 7 Robot Miss Streak 3 | . 3 1 3 2 . 1 2 2 1 . . . . 2 1 . . . . . . . . 1 . . . . . . . 1 Penetration Max . | . . . . . . . . . . . . . . . . . . . . . . . . . . . . . . . . . Secondary Targets 5 | . . . 4 1 . . . . . . . . . . . . . . . . . . . . . . . . . . . . Max Gunslinging Chain 1 | . . . 1 1 . . . . . . . . . . . . . . . . . . . . . . . . . . . . Shots Hit Robots 325 | . 49 10 133 22 . 2 11 17 5 . . 1 7 2 1 . . . 1 . 5 1 . 1 . . . 7 6 1 7 36 Core Hits 214 | . 26 27 56 21 . 2 3 10 6 . . . 4 10 4 . . . 1 . 2 . 5 8 7 . . 5 4 . . 13 Critical Kills 2 | . . . 1 . . . . . . . . . . . . . . . . . . . . . . . . . . . . 1 Critical Parts Destroyed 5 | . . . 2 . . . . . . . . . . . . . . . . . . . . . . . . . . . . 3 Critical Strikes 9 | . . . 3 . . . . . . . . . . . . . . . . . . . . . . . . . 1 . . 5 Meltdown 1 | . . . . . . . . . . . . . . . . . . . . . . . . . . . . . . . . 1 Destroy 2 | . . . 2 . . . . . . . . . . . . . . . . . . . . . . . . . . . . . Corrupt 1 | . . . . . . . . . . . . . . . . . . . . . . . . . . . . . . . . 1 Smash 4 | . . . 1 . . . . . . . . . . . . . . . . . . . . . . . . . . . . 3 Impale 1 | . . . . . . . . . . . . . . . . . . . . . . . . . . . . . 1 . . . Melee Attacks 306 | . . . 9 . . . 7 65 1 . . 8 16 3 1 . 1 15 1 . 5 10 14 . 1 . 2 33 35 12 26 41 Impact 87 | . . . 9 . . . 7 . . . . . . . . . . . . . . . . . . . . . . 4 26 41 Slashing 141 | . . . . . . . . 65 1 . . 8 16 3 1 . 1 15 1 . 5 10 14 . 1 . . . . . . . Piercing 75 | . . . . . . . . . . . . . . . . . . . . . . . . . . . . 32 35 8 . . Entropic 3 | . . . . . . . . . . . . . . . . . . . . . . . . . . . 2 1 . . . . Sneak Attacks 52 | . . . 2 . . . 2 14 1 . . . 4 1 . . . . 1 . . . . . . . . 6 4 . 1 16 Combat Hostiles . | . . . . . . . . . . . . . . . . . . . . . . . . . . . . . . . . . Follow-up Attacks 1 | . . . . . . . . . . . . . . . . . . . . . . . . . . . . 1 . . . . Damage Inflicted 15144 | . 1310 825 2269 812 . 34 549 1571 401 . . 74 568 402 111 . . . 122 . 605 64 398 377 230 . . 524 513 156 482 2747 Guns 3137 | . 459 47 2081 314 . 34 97 . . . . . . . . . . . . . . . . . . . . . . . . 105 Cannons 1201 | . 229 79 . . . . . . . . . . . . . . . . . . . . . . . . . . . 156 40 697 Explosions 3729 | . 622 676 . 498 . . 114 144 283 . . . . 276 111 . . . . . . . 398 377 230 . . . . . . . Melee 7043 | . . . 188 . . . 338 1427 118 . . 74 568 126 . . . . 122 . 605 64 . . . . . 524 513 . 442 1934 Ramming 34 | . . 23 . . . . . . . . . . . . . . . . . . . . . . . . . . . . . 11 Kinetic 3437 | . 688 126 2081 314 . 34 97 . . . . . . . . . . . . . . . . . . . . . . . . 97 Thermal 306 | . . . . . . . . . . . . . . . . . . . . . . . . . . . . . . . 40 266 Explosive 3729 | . 622 676 . 498 . . 114 144 283 . . . . 276 111 . . . . . . . 398 377 230 . . . . . . . Electromagnetic 69 | . . . . . . . . . . . . . . . . . . . . . . . . . . . . . . . . 69 Impact 2902 | . . . 188 . . . 338 . . . . . . . . . . . . . . . . . . . . . . . 442 1934 Slashing 3104 | . . . . . . . . 1427 118 . . 74 568 126 . . . . 122 . 605 64 . . . . . . . . . . Piercing 1037 | . . . . . . . . . . . . . . . . . . . . . . . . . . . . 524 513 . . . Entropic 526 | . . . . . . . . . . . . . . . . . . . . . . . . . . . . . . 156 . 370 Highest Corruption 6 | . . . . . . . . 4 1 1 1 1 . . . . . . . . . . 1 1 1 1 5 1 . 1 . 6 Average Corruption 1 | . . . . . . . . 1 1 1 1 1 . . . . . . . . . . 1 1 1 1 2 1 . 1 . 2 Corruption Purged 5 | . . . . . . . . 5 . . . . . . . . . . . . . . . . . . . . . . . . Corruption Blocked 22 | . . . . . . . . . . . . . . . . . . . . . . . . . . . . . 22 . . . Effects 21 | . . . . . . . . 2 . . . 1 . . . . . . . . . . 1 . 2 . 1 1 . . . 13 Message Errors 7 | . . . . . . . . 1 . . . . . . . . . . . . . . . . 2 . 1 . . . . 3 Matter Fused 4 | . . . . . . . . . . . . . . . . . . . . . . . 1 . . . . . . . . 3 Heat Flow Errors 3 | . . . . . . . . . . . . 1 . . . . . . . . . . . . . . . 1 . . . 1 Energy Discharges 1 | . . . . . . . . . . . . . . . . . . . . . . . . . . . . . . . . 1 Parts Fused 1 | . . . . . . . . . . . . . . . . . . . . . . . . . . . . . . . . 1 Data Loss (minor) 2 | . . . . . . . . . . . . . . . . . . . . . . . . . . . . . . . . 2 Data Loss (major) 3 | . . . . . . . . 1 . . . . . . . . . . . . . . . . . . . . . . . 2 Overload Shots . | . . . . . . . . . . . . . . . . . . . . . . . . . . . . . . . . . Overflow Damage 2911 | . 25 55 168 . . . 166 611 28 . . 47 107 7 19 . . . . . 290 . 11 8 7 . . 40 162 . 48 1112 Projectiles 31 | . 21 . . . . . . . . . . . . . . . . . . . . . . . . . . . . . 10 . Explosions 139 | . 4 55 . . . . . . 28 . . . . 7 19 . . . . . . . 11 8 7 . . . . . . . Melee 2741 | . . . 168 . . . 166 611 . . . 47 107 . . . . . . . 290 . . . . . . 40 162 . 38 1112 Knockbacks 11 | . 4 2 1 . . . . . . . . . . . . . . . . . . . . . . . . . . . . 4 Impact 5 | . . . 1 . . . . . . . . . . . . . . . . . . . . . . . . . . . . 4 Kinetic 6 | . 4 2 . . . . . . . . . . . . . . . . . . . . . . . . . . . . . . Secondary . | . . . . . . . . . . . . . . . . . . . . . . . . . . . . . . . . . Self-Inflicted Damage 335 | . . 51 . 40 . . . . 24 . . . . 49 4 . . . . . . . . 124 38 . . . . . . 5 Shots 12 | . . 2 . 2 . . . . 1 . . . . 1 1 . . . . . . . . 4 1 . . . . . . . Rammed 4 | . . 2 . . . . . . . . . . . . . . . . . . . . . . . . . . . . . 2 Targets Rammed 4 | . . 2 . . . . . . . . . . . . . . . . . . . . . . . . . . . . . 2 Kicked . | . . . . . . . . . . . . . . . . . . . . . . . . . . . . . . . . . Crushed . | . . . . . . . . . . . . . . . . . . . . . . . . . . . . . . . . . Highest Temperature 433 | . 121 . 25 17 . . 15 3 . . . 207 . . 14 8 4 8 5 . . . 10 9 . . 110 339 69 12 411 433 Average Temperature 47 | . 45 . 5 5 . . 7 3 . . . 113 . . 8 5 4 3 3 . . . 10 5 . . 50 61 29 3 68 65 Received Heat Transfer 2320 | . 177 6 549 222 . . 36 27 . . . 12 . . 42 . . . 9 . . . 39 . . . 37 51 9 27 27 1050 Effects 2 | . . . . . . . . . . . . . . . . . . . . . . . . . . . . . . . 1 1 Interference 1 | . . . . . . . . . . . . . . . . . . . . . . . . . . . . . . . . 1 Short Circuit 1 | . . . . . . . . . . . . . . . . . . . . . . . . . . . . . . . 1 . Siege Activations . | . . . . . . . . . . . . . . . . . . . . . . . . . . . . . . . . . Robots Corrupted . | . . . . . . . . . . . . . . . . . . . . . . . . . . . . . . . . . Combat Hostiles . | . . . . . . . . . . . . . . . . . . . . . . . . . . . . . . . . . Parts Fried 12 | . . . 1 . . . 2 . . . . . . . . . . . . . . . . . . . . . . . . 9 Impact Corruptions 35 | . . . 4 . . . 2 . . . . . . . . . . . . . . . . . . . . . . . 3 26 Robots Melted 1 | . . . . . . . . . . . . . . . . . . . . . . . . . . . . . . . . 1 Combat Hostiles 1 | . . . . . . . . . . . . . . . . . . . . . . . . . . . . . . . . 1 Parts Melted . | . . . . . . . . . . . . . . . . . . . . . . . . . . . . . . . . . Heat Transferred 191 | . . . . . . . . . . . . . . . . . . . . . . . . . . . . . . . 37 154 Parts Sabotaged 4 | . . . . . . . . . . . . . . . . . . . . . . . . . . . . . . 2 . 2 Parts Stolen . | . . . . . . . . . . . . . . . . . . . . . . . . . . . . . . . . . Parts Stripped . | . . . . . . . . . . . . . . . . . . . . . . . . . . . . . . . . . Power Chain Reactions . | . . . . . . . . . . . . . . . . . . . . . . . . . . . . . . . . . Missiles Intercepted 6 | . . . . . . . . . . . . . . . . . . . . . . . . . . . . . . . . 6 Alert | -11 -10 -10 -9 -9 -9 -8 -8 -7 -7 -7 -7 -6 -6 -6 -6 -6 -5 -5 -5 -5 -5 -4 -4 -4 -4 -4 -3 -3 -2 -2 -1 -1 ------- Run | Jun Mat Min Mat Min Exi Min Mat Fac Low Low Dat Pro Fac Low Low Zio Pro Fac Upp Upp Zhi Pro Fac Upp Upp War Pro Res Res Tes Acc Com Peak Influence 2102 | . 172 200 253 343 . 10 54 351 . . . . 1077 . . . . 76 . . . . 512 . . . . 560 446 2102 1560 1471 Initial 1255 | . . 1 1 73 . . 3 . . . . . 994 . . . . 9 . . . . 225 . . . . 50 207 157 1255 998 Average 297 | . 55 42 104 172 . . 13 114 . . . . 1036 . . . . 43 . . . . 319 . . . . 235 340 1717 1399 1142 Maximum Alert Level 5 | . . 1 1 1 . . . 1 . . . . 3 . . . . . . . . . 2 . . . . 2 2 5 4 4 Low Security (%) 66 | 100 100 99 70 71 . 100 100 89 . . . . . . . . . 100 . . . . . . . . . 47 . . . . Level 1 14 | . . . 29 28 . . . 10 . . . . . . . . . . . . . . 83 . . . . 27 76 . . . Level 2 2 | . . . . . . . . . . . . . . . . . . . . . . . 16 . . . . 25 23 . . . Level 3 6 | . . . . . . . . . . . . . 100 . . . . . . . . . . . . . . . . . . 38 Level 4 9 | . . . . . . . . . . . . . . . . . . . . . . . . . . . . . . . 100 61 Level 5 . | . . . . . . . . . . . . . . . . . . . . . . . . . . . . . . . . . High Security . | . . . . . . . . . . . . . . . . . . . . . . . . . . . . . . . . . Max Security 1 | . . . . . . . . . . . . . . . . . . . . . . . . . . . . . . 99 . . Squads Dispatched 34 | . 2 . 2 . . . 2 8 . . . . . . . . . . . . . . 1 . . . . 5 1 6 1 6 Investigation 10 | . . . . . . . . 4 . . . . . . . . . . . . . . 1 . . . . 4 . . 1 . Extermination 4 | . . . . . . . . 2 . . . . . . . . . . . . . . . . . . . . . . . 2 Reinforcement 10 | . 2 . 2 . . . 1 2 . . . . . . . . . . . . . . . . . . . 1 1 . . 1 Assault 9 | . . . . . . . . . . . . . . . . . . . . . . . . . . . . . . 6 . 3 Garrison 1 | . . . . . . . 1 . . . . . . . . . . . . . . . . . . . . . . . . . Intercept . | . . . . . . . . . . . . . . . . . . . . . . . . . . . . . . . . . Searches Triggered 2 | . . . . . . . . . . . . . . . . . . . . . . . 1 . . . . . . . . 1 Data Miner Redirects 3 | . . . . . . . . . . . . . . . . . . . . . . . . . . . . 2 . . . 1 Construction Impeded 1 | . . . 1 . . . . . . . . . . . . . . . . . . . . . . . . . . . . . Haulers Reinforced 2 | . . . . . . . . 1 . . . . . . . . . . . . . . . . . . . . 1 . . . Active Scanning Responses . | . . . . . . . . . . . . . . . . . . . . . . . . . . . . . . . . . Cargo Convoy Interrupts . | . . . . . . . . . . . . . . . . . . . . . . . . . . . . . . . . . Stealth | -11 -10 -10 -9 -9 -9 -8 -8 -7 -7 -7 -7 -6 -6 -6 -6 -6 -5 -5 -5 -5 -5 -4 -4 -4 -4 -4 -3 -3 -2 -2 -1 -1 --------- Run | Jun Mat Min Mat Min Exi Min Mat Fac Low Low Dat Pro Fac Low Low Zio Pro Fac Upp Upp Zhi Pro Fac Upp Upp War Pro Res Res Tes Acc Com Distress Signals 31 | . 2 . 6 . . . 5 1 . . . 3 1 . . . . . . . . . 1 . . . . 3 8 . . 1 Communications Jammed 33 | . . . . . . . . . . . . . . . . . . . . . . . . . . . . 5 16 . 12 . Distress Signals 32 | . . . . . . . . . . . . . . . . . . . . . . . . . . . . 4 16 . 12 . Times Spotted 437 | . 22 23 39 11 . . 18 31 3 5 . 17 1 8 3 . 2 1 9 6 . 13 16 17 4 14 12 30 17 43 13 59 Peak Tracking Total 24 | . 4 5 8 3 . . 8 13 2 5 . 10 2 4 3 . 2 1 7 6 . 10 8 9 3 8 7 12 7 24 4 13 Tactical Retreats 77 | . . 1 . . . . 3 9 . . . 4 1 3 . . 1 . 1 . . 3 3 4 . 1 3 8 4 6 5 17 Traps | -11 -10 -10 -9 -9 -9 -8 -8 -7 -7 -7 -7 -6 -6 -6 -6 -6 -5 -5 -5 -5 -5 -4 -4 -4 -4 -4 -3 -3 -2 -2 -1 -1 ------- Run | Jun Mat Min Mat Min Exi Min Mat Fac Low Low Dat Pro Fac Low Low Zio Pro Fac Upp Upp Zhi Pro Fac Upp Upp War Pro Res Res Tes Acc Com Traps Triggered 8 | . . . 1 . . . . 4 . . . . . . . . . . . . . . 2 . . . . . . . . 1 Indirectly . | . . . . . . . . . . . . . . . . . . . . . . . . . . . . . . . . . Trap Hack Attempts . | . . . . . . . . . . . . . . . . . . . . . . . . . . . . . . . . . Triggered . | . . . . . . . . . . . . . . . . . . . . . . . . . . . . . . . . . Disarmed 6 | . 6 . . . . . . . . . . . . . . . . . . . . . . . . . . . . . . . Reprogrammed . | . . . . . . . . . . . . . . . . . . . . . . . . . . . . . . . . . Reused . | . . . . . . . . . . . . . . . . . . . . . . . . . . . . . . . . . Traps Extracted . | . . . . . . . . . . . . . . . . . . . . . . . . . . . . . . . . . Installed . | . . . . . . . . . . . . . . . . . . . . . . . . . . . . . . . . . Triggered 11 | . . . . . . . . . 1 . . . . 1 . . . . . 1 . . . . . 8 . . . . . . Machines | -11 -10 -10 -9 -9 -9 -8 -8 -7 -7 -7 -7 -6 -6 -6 -6 -6 -5 -5 -5 -5 -5 -4 -4 -4 -4 -4 -3 -3 -2 -2 -1 -1 ---------- Run | Jun Mat Min Mat Min Exi Min Mat Fac Low Low Dat Pro Fac Low Low Zio Pro Fac Upp Upp Zhi Pro Fac Upp Upp War Pro Res Res Tes Acc Com Machines Disabled 20 | . 4 . . 4 . . 1 1 . . . 4 . . . . . . . . . . . . . . . . . 5 1 . Max in Single Turn 2 | . 2 . . 2 . . 1 1 . . . 1 . . . . . . . . . . . . . . . . . 1 1 . Garrison Access 1 | . . . . . . . . . . . . . 1 . . . . . . . . . . . . . . . . . . . Machines Repaired . | . . . . . . . . . . . . . . . . . . . . . . . . . . . . . . . . . Machines Sabotaged . | . . . . . . . . . . . . . . . . . . . . . . . . . . . . . . . . . Overloaded Fab Kills . | . . . . . . . . . . . . . . . . . . . . . . . . . . . . . . . . . Hacking | -11 -10 -10 -9 -9 -9 -8 -8 -7 -7 -7 -7 -6 -6 -6 -6 -6 -5 -5 -5 -5 -5 -4 -4 -4 -4 -4 -3 -3 -2 -2 -1 -1 --------- Run | Jun Mat Min Mat Min Exi Min Mat Fac Low Low Dat Pro Fac Low Low Zio Pro Fac Upp Upp Zhi Pro Fac Upp Upp War Pro Res Res Tes Acc Com Machines Accessed 76 | . 5 1 3 . 2 . 2 12 1 . 4 1 4 . 1 . . 2 1 . 9 . 3 . . 10 . 9 2 . 1 3 Terminals 37 | . 4 . 3 . . . 2 9 . . . 1 2 . . . . 1 . . . . 2 . . . . 8 1 . 1 3 Fabricators 2 | . . . . . . . . 1 . . . . . . . . . 1 . . . . . . . . . . . . . . Repair Stations . | . . . . . . . . . . . . . . . . . . . . . . . . . . . . . . . . . Recycling Units 5 | . 1 . . . . . . 1 . . . . 1 . . . . . . . . . 1 . . . . 1 . . . . Scanalyzers . | . . . . . . . . . . . . . . . . . . . . . . . . . . . . . . . . . Garrison Access 3 | . . . . . . . . 1 . . . . 1 . . . . . . . . . . . . . . . 1 . . . Total Hacks 246 | . 13 1 11 . 24 . 5 26 1 . 32 1 7 . 6 . . 4 1 . 48 . 4 . . 26 . 25 5 . 3 3 Successful 167 | . 7 1 6 . 24 . 2 1 1 . 32 1 2 . 6 . . 2 1 . 48 . 1 . . 26 . 3 . . . 3 Failed 78 | . 5 . 5 . . . 3 25 . . . . 5 . . . . 2 . . . . 3 . . . . 22 5 . 3 . Catastrophic 25 | . . . . . . . 1 10 . . . . 1 . . . . . . . . . 2 . . . . 9 1 . 1 . Database Lockouts 1 | . 1 . . . . . . . . . . . . . . . . . . . . . . . . . . . . . . . Manual 72 | . 14 . 5 . 1 . 3 17 . . . . 1 . . 6 . . . . . . 3 . . 1 . 14 2 . 3 2 Terminals 87 | . 11 . 11 . . . 5 21 . . . 1 2 . . . . 2 . . . . 3 . . . . 23 2 . 3 3 Fabricators 3 | . . . . . . . . 1 . . . . . . . . . 2 . . . . . . . . . . . . . . Repair Stations . | . . . . . . . . . . . . . . . . . . . . . . . . . . . . . . . . . Recycling Units 9 | . 2 . . . . . . 2 . . . . 2 . . . . . . . . . 1 . . . . 2 . . . . Scanalyzers . | . . . . . . . . . . . . . . . . . . . . . . . . . . . . . . . . . Garrison Access 8 | . . . . . . . . 2 . . . . 3 . . . . . . . . . . . . . . . 3 . . . Terminal Hacks 160 | . 5 1 5 . 24 . 2 1 1 . 32 1 1 . 6 . . 1 1 . 48 . . . . 26 . 2 . . . 3 Record 97 | . . . . . 23 . . . . . 11 . . . 6 . . . . . 36 . . . . 20 . 1 . . . . Part Schematic 16 | . . . . . . . . . . . 12 . . . . . . . . . 4 . . . . . . . . . . . Robot Schematic 6 | . . . . . . . . . . . 6 . . . . . . . . . . . . . . . . . . . . . Robot Analysis 6 | . 2 . . . . . . . . . . . . . . . . . . . 4 . . . . . . . . . . . Prototype ID Bank 11 | . . . . . . . . . . . 3 . . . . . . . . . 4 . . . . 4 . . . . . . Open Door 7 | . . 1 . . . . . . 1 . . 1 . . . . . . 1 . . . . . . 2 . . . . . 1 Open DSF 1 | . . . . . . . . 1 . . . . . . . . . . . . . . . . . . . . . . . . Branch Access Points 6 | . . . 1 . . . 1 . . . . . 1 . . . . 1 . . . . . . . . . 1 . . . 1 Unreport Threat 4 | . . . 3 . . . 1 . . . . . . . . . . . . . . . . . . . . . . . . . Locate Traps 2 | . 2 . . . . . . . . . . . . . . . . . . . . . . . . . . . . . . . Disarm Traps 1 | . 1 . . . . . . . . . . . . . . . . . . . . . . . . . . . . . . . Zone Layout 1 | . . . 1 . . . . . . . . . . . . . . . . . . . . . . . . . . . . . Derelict Proto ID Bank 1 | . . . . . 1 . . . . . . . . . . . . . . . . . . . . . . . . . . . Disengage Seal 1 | . . . . . . . . . . . . . . . . . . . . . . . . . . . . . . . . 1 Fabricator Hacks 1 | . . . . . . . . . . . . . . . . . . 1 . . . . . . . . . . . . . . Load Schematic 1 | . . . . . . . . . . . . . . . . . . 1 . . . . . . . . . . . . . . Repair Station Hacks . | . . . . . . . . . . . . . . . . . . . . . . . . . . . . . . . . . Recycling Unit Hacks 3 | . 1 . . . . . . . . . . . . . . . . . . . . . 1 . . . . 1 . . . . Retrieve Components 3 | . 1 . . . . . . . . . . . . . . . . . . . . . 1 . . . . 1 . . . . Scanalyzer . | . . . . . . . . . . . . . . . . . . . . . . . . . . . . . . . . . Garrison Access Hacks 1 | . . . . . . . . . . . . . 1 . . . . . . . . . . . . . . . . . . . Seal Access 1 | . . . . . . . . . . . . . 1 . . . . . . . . . . . . . . . . . . . Unauthorized Hacks 2 | . 1 . 1 . . . . . . . . . . . . . . . . . . . . . . . . . . . . . Terminals 2 | . 1 . 1 . . . . . . . . . . . . . . . . . . . . . . . . . . . . . Botnet 2 | . 1 . 1 . . . . . . . . . . . . . . . . . . . . . . . . . . . . . Fabricators . | . . . . . . . . . . . . . . . . . . . . . . . . . . . . . . . . . Repair Stations . | . . . . . . . . . . . . . . . . . . . . . . . . . . . . . . . . . Recycling Units . | . . . . . . . . . . . . . . . . . . . . . . . . . . . . . . . . . Scanalyzers . | . . . . . . . . . . . . . . . . . . . . . . . . . . . . . . . . . Garrison Access . | . . . . . . . . . . . . . . . . . . . . . . . . . . . . . . . . . Data Cores Recovered 2 | . . . . . . . . 1 . . . . . . . . . . . . . . . . . . . 1 . . . . Used 1 | . . . . . . . . 1 . . . . . . . . . . . . . . . . . . . . . . . . Hacking Detections 41 | . 4 . 3 . . . 2 12 . . . . 4 . . . . 1 . . . . 2 . . . . 8 2 . 1 2 Full Trace Events 10 | . . . . . . . . 4 . . . . . . . . . . . . . . 1 . . . . 4 . . 1 . Feedback Events 5 | . . . . . . . . 1 . . . . . . . . . . . . . . 1 . . . . 2 . . 1 . Corruption 3 | . . . . . . . . 1 . . . . . . . . . . . . . . 1 . . . . 1 . . . . Hackware Fried 2 | . . . . . . . . . . . . . . . . . . . . . . . . . . . . 1 . . 1 . Feedback Blocked . | . . . . . . . . . . . . . . . . . . . . . . . . . . . . . . . . . Robot Schematics Acquired 6 | . . . . . . . . . . . 6 . . . . . . . . . . . . . . . . . . . . . Robots Built . | . . . . . . . . . . . . . . . . . . . . . . . . . . . . . . . . . Authchips . | . . . . . . . . . . . . . . . . . . . . . . . . . . . . . . . . . Time . | . . . . . . . . . . . . . . . . . . . . . . . . . . . . . . . . . Total Robot Build Rating . | . . . . . . . . . . . . . . . . . . . . . . . . . . . . . . . . . Part Schematics Acquired 16 | . . . . . . . . . . . 12 . . . . . . . . . 4 . . . . . . . . . . . Parts Built . | . . . . . . . . . . . . . . . . . . . . . . . . . . . . . . . . . Authchips . | . . . . . . . . . . . . . . . . . . . . . . . . . . . . . . . . . Time . | . . . . . . . . . . . . . . . . . . . . . . . . . . . . . . . . . Total Part Build Rating . | . . . . . . . . . . . . . . . . . . . . . . . . . . . . . . . . . Parts Repaired . | . . . . . . . . . . . . . . . . . . . . . . . . . . . . . . . . . Time . | . . . . . . . . . . . . . . . . . . . . . . . . . . . . . . . . . Parts Recycled . | . . . . . . . . . . . . . . . . . . . . . . . . . . . . . . . . . Recycled Matter . | . . . . . . . . . . . . . . . . . . . . . . . . . . . . . . . . . Retrieved Matter . | . . . . . . . . . . . . . . . . . . . . . . . . . . . . . . . . . Retrieved Components 8 | . 3 . . . . . . . . . . . . . . . . . . . . . 2 . . . . 3 . . . . Parts Scanalyzed . | . . . . . . . . . . . . . . . . . . . . . . . . . . . . . . . . . Part Schematics Acquired . | . . . . . . . . . . . . . . . . . . . . . . . . . . . . . . . . . Parts Damaged . | . . . . . . . . . . . . . . . . . . . . . . . . . . . . . . . . . Bothacking | -11 -10 -10 -9 -9 -9 -8 -8 -7 -7 -7 -7 -6 -6 -6 -6 -6 -5 -5 -5 -5 -5 -4 -4 -4 -4 -4 -3 -3 -2 -2 -1 -1 ------------ Run | Jun Mat Min Mat Min Exi Min Mat Fac Low Low Dat Pro Fac Low Low Zio Pro Fac Upp Upp Zhi Pro Fac Upp Upp War Pro Res Res Tes Acc Com Used RIF Installer . | . . . . . . . . . . . . . . . . . . . . . . . . . . . . . . . . . Robots Hacked . | . . . . . . . . . . . . . . . . . . . . . . . . . . . . . . . . . Non-combat . | . . . . . . . . . . . . . . . . . . . . . . . . . . . . . . . . . Combat . | . . . . . . . . . . . . . . . . . . . . . . . . . . . . . . . . . Robot Hacks Applied . | . . . . . . . . . . . . . . . . . . . . . . . . . . . . . . . . . Relay Couplers Released . | . . . . . . . . . . . . . . . . . . . . . . . . . . . . . . . . . Fabnet Peak Effective % . | . . . . . . . . . . . . . . . . . . . . . . . . . . . . . . . . . Robots Rewired . | . . . . . . . . . . . . . . . . . . . . . . . . . . . . . . . . . Allies Hacked . | . . . . . . . . . . . . . . . . . . . . . . . . . . . . . . . . . Hacks Repelled . | . . . . . . . . . . . . . . . . . . . . . . . . . . . . . . . . . Allies | -11 -10 -10 -9 -9 -9 -8 -8 -7 -7 -7 -7 -6 -6 -6 -6 -6 -5 -5 -5 -5 -5 -4 -4 -4 -4 -4 -3 -3 -2 -2 -1 -1 -------- Run | Jun Mat Min Mat Min Exi Min Mat Fac Low Low Dat Pro Fac Low Low Zio Pro Fac Upp Upp Zhi Pro Fac Upp Upp War Pro Res Res Tes Acc Com Total Allies 5 | . . 4 . . . . . . . . . 1 . . . . . . . . . . . . . . . . . . . . Largest Group 3 | . . 3 . . . . . . . . . 1 . . . . . . . . . . . . . . . . . . . . Highest-Rated Group 96 | . . 63 . . . . . . . . . 96 . . . . . . . . . . . . . . . . . . . . Highest-Rated Ally 96 | . . 31 . . . . . . . . . 96 . . . . . . . . . . . . . . . . . . . . Total Orders 24 | . . . . . . . 24 . . . . . . . . . . . . . . . . . . . . . . . . . STAY 1 | . . . . . . . 1 . . . . . . . . . . . . . . . . . . . . . . . . . ROAM 4 | . . . . . . . 4 . . . . . . . . . . . . . . . . . . . . . . . . . EXPLORE 5 | . . . . . . . 5 . . . . . . . . . . . . . . . . . . . . . . . . . RETURN 14 | . . . . . . . 14 . . . . . . . . . . . . . . . . . . . . . . . . . Ally Attacks 81 | . . 47 . . . . 16 . . . . 18 . . . . . . . . . . . . . . . . . . . . Total Damage 1062 | . . 549 . . . . . . . . . 513 . . . . . . . . . . . . . . . . . . . . Kills 16 | . . 13 . . . . . . . . . 3 . . . . . . . . . . . . . . . . . . . . Allies Corrupted . | . . . . . . . . . . . . . . . . . . . . . . . . . . . . . . . . . Allies Melted 3 | . . . . . . . . . . . . 1 . . . . . . . . . . . . . 1 . . 1 . . . Intel | -11 -10 -10 -9 -9 -9 -8 -8 -7 -7 -7 -7 -6 -6 -6 -6 -6 -5 -5 -5 -5 -5 -4 -4 -4 -4 -4 -3 -3 -2 -2 -1 -1 ------- Run | Jun Mat Min Mat Min Exi Min Mat Fac Low Low Dat Pro Fac Low Low Zio Pro Fac Upp Upp Zhi Pro Fac Upp Upp War Pro Res Res Tes Acc Com Robot Analysis Total 6 | . 2 . . . . . . . . . . . . . . . . . . . 4 . . . . . . . . . . . Derelict Logs Recovered 19 | . . 2 . 2 . . . . 2 1 . 2 . . 2 2 . . 2 1 . . . 1 2 . . . . . . . Drone Launches 30 | . . . . . . . 30 . . . . . . . . . . . . . . . . . . . . . . . . . Drone Recoveries 14 | . . . . . . . 14 . . . . . . . . . . . . . . . . . . . . . . . . . Exploration | -11 -10 -10 -9 -9 -9 -8 -8 -7 -7 -7 -7 -6 -6 -6 -6 -6 -5 -5 -5 -5 -5 -4 -4 -4 -4 -4 -3 -3 -2 -2 -1 -1 ------------- Run | Jun Mat Min Mat Min Exi Min Mat Fac Low Low Dat Pro Fac Low Low Zio Pro Fac Upp Upp Zhi Pro Fac Upp Upp War Pro Res Res Tes Acc Com Turns Passed 15976 | 2 1779 1726 2000 1130 1059 581 431 965 122 98 33 300 289 131 188 461 94 182 176 75 152 190 266 118 120 489 167 417 453 181 376 1225 Spaces Moved 20550 | 2 609 691 652 453 449 250 466 1671 260 256 85 606 653 284 507 1085 264 322 455 179 265 653 599 374 382 728 600 965 1281 563 1186 2755 Core 29 | . . . . . 1 . . . . . . . . . . . . . . . . . . . . . . . . . . 28 Treads 2462 | . 357 281 645 453 448 250 15 . . . . . . . . . . . . . . . . . . . . . . . . 13 Legs 87 | 2 85 . . . . . . . . . . . . . . . . . . . . . . . . . . . . . . . Wheels 599 | . 167 410 7 . . . 15 . . . . . . . . . . . . . . . . . . . . . . . . . Hover . | . . . . . . . . . . . . . . . . . . . . . . . . . . . . . . . . . Flight 17373 | . . . . . . . 436 1671 260 256 85 606 653 284 507 1085 264 322 455 179 265 653 599 374 382 728 600 965 1281 563 1186 2714 Fastest Speed 7 | 120 120 175 175 230 230 230 42 37 37 37 37 37 33 33 33 33 33 30 33 33 19 19 22 17 25 20 7 7 7 7 13 18 Average Speed 59 | 120 257 234 234 232 233 230 53 37 37 37 37 37 33 33 33 33 33 34 33 33 28 20 23 24 25 23 21 20 19 19 19 26 Slowest Speed 1600 | 120 480 480 320 235 1600 230 230 42 37 37 37 37 37 33 33 33 33 37 37 33 37 22 25 25 25 27 23 31 20 20 24 160 Overloaded Moves 211 | . . . . . . . . . . . . . . . . . . . . . . . . . . . 45 50 8 4 104 . Propulsion Burnouts . | . . . . . . . . . . . . . . . . . . . . . . . . . . . . . . . . . Robots Hopped 54 | . . . . . . . . 1 . . . 1 . . 1 . . . . . . 2 1 . 1 3 2 8 7 4 4 19 Cave-ins Triggered . | . . . . . . . . . . . . . . . . . . . . . . . . . . . . . . . . . Exploration Rate (%) 56 | 2 95 99 67 91 78 63 40 42 41 45 70 55 23 48 69 87 49 13 61 39 62 74 20 61 59 94 67 32 40 87 32 47 Regions Visited 32 Branch Regions 22 Pre-discovered Areas 15 | . . . . 1 1 . . . . . 1 1 . . 2 4 . . 1 . 3 . . . . 1 . . . . . . Known Exits Taken 16 | . . . 1 1 1 1 1 . 1 . . . 1 . . . 1 1 . . . . 1 1 1 1 1 1 1 . . . Unknown Exits Taken 16 | 1 1 1 . . . . . 1 . 1 1 1 . 1 1 1 . . 1 1 1 1 . . . . . . . 1 1 . Scrap Searched 29 | . . 1 . 2 . 2 . . 1 1 . 4 . 1 1 3 1 . 2 . . 1 . 3 3 . 3 . . . . . Spaces Dug 223 | . . 5 6 . . . 3 46 . . . 4 8 2 1 . 1 15 . . . 9 14 4 1 . 2 15 15 4 20 48 Terrain Destroyed 645 | . 24 112 6 85 . . 25 68 30 . . 4 8 32 6 . 1 15 . . . 9 21 75 17 . 2 15 15 5 21 49 Melee 179 | . . . 6 . . . 3 46 . . . 4 8 2 1 . 1 15 . . . 9 14 . 1 . 2 15 15 4 14 19 Projectile 38 | . . . . . . . . . . . . . . . . . . . . . . . . . . . . . . 1 7 30 AOE 428 | . 24 112 . 85 . . 22 22 30 . . . . 30 5 . . . . . . . 7 75 16 . . . . . . . Terrain Rammed . | . . . . . . . . . . . . . . . . . . . . . . . . . . . . . . . . . Walls Destroyed . | . . . . . . . . . . . . . . . . . . . . . . . . . . . . . . . . . Machines Disabled . | . . . . . . . . . . . . . . . . . . . . . . . . . . . . . . . . . Actions | -11 -10 -10 -9 -9 -9 -8 -8 -7 -7 -7 -7 -6 -6 -6 -6 -6 -5 -5 -5 -5 -5 -4 -4 -4 -4 -4 -3 -3 -2 -2 -1 -1 --------- Run | Jun Mat Min Mat Min Exi Min Mat Fac Low Low Dat Pro Fac Low Low Zio Pro Fac Upp Upp Zhi Pro Fac Upp Upp War Pro Res Res Tes Acc Com Total 23181 | 1 726 765 928 492 460 253 624 1888 278 259 85 664 697 311 526 1188 268 366 475 194 332 684 694 392 400 1046 634 1139 1425 613 1279 3095 Wait 1348 | . 20 19 70 1 . . 102 102 2 . . 47 2 14 3 92 4 7 18 16 24 22 46 8 2 294 34 107 87 7 36 162 Move 20417 | 1 608 690 651 452 448 249 465 1668 259 255 84 603 652 283 504 1084 263 321 454 178 264 648 596 373 379 723 595 949 1267 554 1177 2720 Hop 47 | . . . . . . . . 1 . . . 1 . . 1 . . . . . . 2 1 . 1 1 2 7 6 4 4 16 Pick Up 178 | . 23 7 25 3 2 1 7 14 2 1 . 1 9 1 3 4 . 7 1 . 8 . 2 1 4 1 . 9 8 4 6 24 Fast Attach 99 | . 1 . 10 . 3 . 2 1 2 1 . 2 4 . . 1 . 2 . . 9 . . . . 8 . 9 7 13 3 21 Attach 114 | . 2 4 15 2 . . 4 8 2 . . . 2 2 4 2 . 3 . . 6 1 8 1 3 4 . 5 1 . 9 26 Detach 44 | . 1 . 7 . . . . 1 2 . . . 1 2 3 1 . 3 . . . . 4 . 3 5 1 1 1 . 2 6 Swap 87 | . 9 8 16 2 . . 12 12 . . 1 . . . . 1 . 1 . . 3 . 1 . . . . 6 6 2 2 5 Drop 221 | . 7 7 30 4 7 1 18 12 2 2 . 2 11 1 5 3 . 7 1 . 13 1 1 1 2 10 . 18 13 16 6 20 Fire 311 | . 55 28 95 28 . 2 7 4 6 . . . . 5 2 . . . . . . . 3 8 5 . . . . 3 8 52 Melee 293 | . . . 9 . . . 7 65 1 . . 8 16 3 1 . 1 15 1 . 5 10 14 . 1 . 2 28 29 10 26 41 Ram 3 | . . 1 . . . . . . . . . . . . . . . . . . . . . . . . . . . . . 2 Kick . | . . . . . . . . . . . . . . . . . . . . . . . . . . . . . . . . . Crush 1 | . . 1 . . . . . . . . . . . . . . . . . . . . . . . . . . . . . . Escape Stasis 18 | . . . . . . . . . . . . . . . . . . . . . . . 18 . . . . . . . . . Rewire . | . . . . . . . . . . . . . . . . . . . . . . . . . . . . . . . . . Trap . | . . . . . . . . . . . . . . . . . . . . . . . . . . . . . . . . . Miscellaneous . | . . . . . . . . . . . . . . . . . . . . . . . . . . . . . . . . . Route ------- -11/Junkyard -10/Materials (discovered 4 exits: *Mat x3 / *Min) -10/Mines (discovered 3 exits: *Mat x2 / [*Sub]) -9/Materials (discovered 4 exits: *Mat x2 / *Min x2) -9/Mines (discovered 3 exits: *Mat x2 / *Exi) -9/Exiles (discovered 2 exits: *Min x2) -8/Mines -8/Materials (discovered 2 exits: *Fac x2) -7/Factory (discovered 4 exits: *Fac x2 / [*Sto] / *Low) -7/Lower Caves -7/Lower Caves (discovered 2 exits: *Fac / *Dat) -7/Data Miner -6/Proximity Caves -6/Factory (discovered 4 exits: *Fac x2 / *Low x2) -6/Lower Caves -6/Lower Caves (discovered 2 exits: *Fac / *Zio) -6/Zion (discovered 2 exits: [*Dee] / [*Pro]) -5/Proximity Caves -5/Factory (discovered 3 exits: *Fac / *Upp x2) -5/Upper Caves -5/Upper Caves (discovered 2 exits: *Fac / *Zhi) -5/Zhirov -4/Proximity Caves -4/Factory (discovered 2 exits: *Upp / Ext) -4/Upper Caves -4/Upper Caves -4/Warlord -3/Proximity Caves -3/Research (discovered 3 exits: *Res / Qua x2) -2/Research (discovered 2 exits: *Tes x2) -2/Testing -1/Access -1/Command History --------- Turn | Location | Event 1 | -11/Junkyard | Discovered new exit (range 1) 3 | -11/Junkyard | Entered Materials 62 | -10/Materials | Central database locked down 315 | -10/Materials | Build established: Mutant 701 | -10/Materials | Discovered new exit (range 16) 894 | -10/Materials | Discovered new exit (range 15) 1197 | -10/Materials | Discovered new exit (range 4) 1422 | -10/Materials | Discovered new exit (range 16) 1782 | -10/Materials | Entered Mines 1943 | -10/Mines | Assisted by bots powering up and referring to "LRC-V3" 2240 | -10/Mines | Escorted by a lone wolf Derelict 2322 | -10/Mines | Learned Materials security intel 2351 | -10/Mines | Discovered new exit (range 3) 2370 | -10/Mines | Discovered new exit (range 10) 2474 | -10/Mines | Found the Drone Emporium 2494 | -10/Mines | Found Prototype Device 2821 | -10/Mines | Assembled infested the area 2964 | -10/Mines | Core integrity fell below 50% 2998 | -10/Mines | Lost 4 parts (1p1u2w) 3077 | -10/Mines | Learned location of 1 exit from Materials 3448 | -10/Mines | Discovered new exit (range 10) 3508 | -10/Mines | Entered Materials 3508 | -9/Materials | Evolved 2 slots: Propulsion x1, Utility x1 3509 | -9/Materials | Identified exit to Mines 3522 | -9/Materials | Identified Bomb Drone Bay 4215 | -9/Materials | Discovered new exit (range 10) 4595 | -9/Materials | Discovered new exit (range 17) 4680 | -9/Materials | Build established: Scavenger-Mutant 5323 | -9/Materials | Lost 4 parts (1p1n1u1w) 5356 | -9/Materials | Build established: Mutant 5508 | -9/Materials | Entered Mines 5517 | -9/Mines | Discovered new exit (range 10) 5544 | -9/Mines | Identified exit to Materials 5894 | -9/Mines | Deemed a non-threat by the Exiles lab entrance 5897 | -9/Mines | Discovered new exit (range 5) 6441 | -9/Mines | Discovered exit to Materials (range 15) 6470 | -9/Mines | Learned 4 Materials zone layouts 6636 | -9/Mines | Identified exit to Exiles 6638 | -9/Mines | Entered Exiles 6695 | -9/Exiles | Discovered new exit (range 14) 6750 | -9/Exiles | Met 8R-AWN 6787 | -9/Exiles | Met EX-HEX 6858 | -9/Exiles | Met EX-BIN 6943 | -9/Exiles | Met EX-DEC 6957 | -9/Exiles | Learned location of Zion (-6) 7136 | -9/Exiles | Aligned with FarCom system 7139 | -9/Exiles | Given EX-Vault access code 7194 | -9/Exiles | Opened EX-Vault 7252 | -9/Exiles | Found Flying Fortress v7 7301 | -9/Exiles | Warned to stay clear of 0b10 Research branches 7440 | -9/Exiles | Visited The Gauntlet 7676 | -9/Exiles | Discovered new exit (range 11) 7694 | -9/Exiles | Identified exit to Mines 7697 | -9/Exiles | Left Exiles lab with Flying Fortress v7 7697 | -9/Exiles | Entered Mines 8264 | -8/Mines | Discovered exit to Materials (range 7) 8278 | -8/Mines | Entered Materials 8278 | -8/Materials | Evolved 2 slots: Propulsion x2 8279 | -8/Materials | Identified exit to Factory 8420 | -8/Materials | Garrison activated, responded to threat 8709 | -8/Materials | Entered Factory 8709 | -7/Factory | Evolved 2 slots: Propulsion x1, Utility x1 9155 | -7/Factory | Discovered new exit (range 9) 9381 | -7/Factory | Discovered new exit (range 4) 9415 | -7/Factory | Discovered new exit (range 8) 9581 | -7/Factory | Discovered new exit (range 5) 9674 | -7/Factory | Entered Lower Caves 9675 | -7/Lower Caves | Encountered a Warlord checkpoint 9703 | -7/Lower Caves | Learned Factory garrison access intel 9717 | -7/Lower Caves | Identified exit to Lower Caves 9796 | -7/Lower Caves | Entered another Lower Caves area 9801 | -7/Lower Caves | Discovered new exit (range 9) 9816 | -7/Lower Caves | Encountered a Warlord checkpoint 9885 | -7/Lower Caves | Discovered new exit (range 10) 9891 | -7/Lower Caves | Learned Factory stockpile data 9894 | -7/Lower Caves | Entered Data Miner 9894 | -7/Data Miner | Discovered new exit (range 6) 9902 | -7/Data Miner | Met Data Miner 9913 | -7/Data Miner | Learned location of Section 7 (-3) 9913 | -7/Data Miner | Acquired the access code to Warlord's prototype stash 9916 | -7/Data Miner | Received God Mode back door access code from Data Miner 9927 | -7/Data Miner | Entered Proximity Caves 9929 | -6/Proximity Caves | Spotter reported a threat 9930 | -6/Proximity Caves | Spotter reported a threat 9958 | -6/Proximity Caves | Learned location of Extension (-4) 9960 | -6/Proximity Caves | Learned location of 1 exit from Factory 9969 | -6/Proximity Caves | Spotted B-75 Beast 9970 | -6/Proximity Caves | Entered a huge 0b10 base via the front door 9983 | -6/Proximity Caves | Spotter reported a threat 9997 | -6/Proximity Caves | Spotted B-75 Beast 10056 | -6/Proximity Caves | Spotter reported a threat 10160 | -6/Proximity Caves | Spotter reported a threat 10181 | -6/Proximity Caves | Spotter reported a threat 10217 | -6/Proximity Caves | Discovered new exit (range 8) 10227 | -6/Proximity Caves | Entered Factory 10227 | -6/Factory | Evolved 2 slots: Propulsion x1, Utility x1 10228 | -6/Factory | Identified exit to Factory 10230 | -6/Factory | Loaded intel: 4 garrison access locations 10287 | -6/Factory | Discovered new exit (range 9) 10339 | -6/Factory | Identified exit to Lower Caves 10359 | -6/Factory | Discovered exit to Factory (range 10) 10516 | -6/Factory | Entered Lower Caves 10520 | -6/Lower Caves | Build established: Infiltrator-Sprinter 10633 | -6/Lower Caves | Discovered new exit (range 15) 10647 | -6/Lower Caves | Entered another Lower Caves area 10647 | -6/Lower Caves | Discovered exit to Factory (range 9) 10713 | -6/Lower Caves | Learned Research garrison access intel 10713 | -6/Lower Caves | Learned Factory garrison access intel 10713 | -6/Lower Caves | Learned Research stockpile data 10746 | -6/Lower Caves | Encountered a Warlord checkpoint 10772 | -6/Lower Caves | Learned Factory trap positions 10789 | -6/Lower Caves | Attracted the attention of an 0b10 checkpoint 10816 | -6/Lower Caves | Discovered new exit (range 14) 10835 | -6/Lower Caves | Entered Zion 10850 | -6/Zion | Discovered new exit (range 15) 10900 | -6/Zion | Acquired unknown access codes intercepted by a Zionite 10908 | -6/Zion | Received a visual enhancement algorithm 11057 | -6/Zion | Found Prototype Device 11059 | -6/Zion | Identified Mobile Refinery Mk. CCLXVII 11187 | -6/Zion | Learned location of Warlord (-4) 11203 | -6/Zion | Rebuked by Imprinter 11236 | -6/Zion | Opened final containment barrier to the Deep Caves 11241 | -6/Zion | Discovered new exit (range 3) 11241 | -6/Zion | Saw the warning signs outside the Deep Caves entrance 11296 | -6/Zion | Entered Proximity Caves 11343 | -5/Proximity Caves | Spotted B-75 Beast 11385 | -5/Proximity Caves | Discovered exit to Factory (range 16) 11390 | -5/Proximity Caves | Entered Factory 11390 | -5/Factory | Evolved 2 slots: Propulsion x1, Utility x1 11391 | -5/Factory | Loaded intel: 100 trap records 11392 | -5/Factory | Loaded intel: 4 garrison access locations 11428 | -5/Factory | Identified exit to Upper Caves 11558 | -5/Factory | Discovered new exit (range 10) 11572 | -5/Factory | Entered Upper Caves 11574 | -5/Upper Caves | Encountered a Warlord checkpoint 11730 | -5/Upper Caves | Learned Factory garrison access intel 11745 | -5/Upper Caves | Discovered new exit (range 8) 11748 | -5/Upper Caves | Entered another Upper Caves area 11754 | -5/Upper Caves | Discovered new exit (range 13) 11759 | -5/Upper Caves | Attracted the attention of an 0b10 checkpoint 11772 | -5/Upper Caves | Spotted B-75 Beast 11776 | -5/Upper Caves | Learned 4 Factory zone layouts 11821 | -5/Upper Caves | Discovered new exit (range 8) 11823 | -5/Upper Caves | Entered Zhirov 11823 | -5/Zhirov | Discovered new exit (range 3) 11829 | -5/Zhirov | Met Zhirov 11836 | -5/Zhirov | Learned location of Quarantine (-3) 11836 | -5/Zhirov | Learned location of Testing (-2) 11836 | -5/Zhirov | Learned location of Command (-1) 11842 | -5/Zhirov | Zhirov requested help retrieving the SGEMP Prototype 11858 | -5/Zhirov | Found Alien Artifact 11858 | -5/Zhirov | Identified Integrated Dissipator 11858 | -5/Zhirov | Installed Integrated Dissipator, increased core heat dissipation (+20) 11865 | -5/Zhirov | Found Alien Artifact 11975 | -5/Zhirov | Entered Proximity Caves 12037 | -4/Proximity Caves | Spotter reported a threat 12163 | -4/Proximity Caves | Discovered new exit (range 10) 12165 | -4/Proximity Caves | Entered Factory 12165 | -4/Factory | Evolved 2 slots: Propulsion x1, Utility x1 12166 | -4/Factory | Identified exit to Extension 12168 | -4/Factory | Loaded intel: 4 garrison access locations 12415 | -4/Factory | Search patrols dispatched 12418 | -4/Factory | Discovered new exit (range 6) 12422 | -4/Factory | Identified exit to Upper Caves 12431 | -4/Factory | Entered Upper Caves 12432 | -4/Upper Caves | Encountered a Warlord checkpoint 12445 | -4/Upper Caves | Attracted the attention of an 0b10 outpost 12464 | -4/Upper Caves | Learned location of 1 exit from Research 12539 | -4/Upper Caves | Discovered new exit (range 6) 12540 | -4/Upper Caves | Identified exit to Upper Caves 12549 | -4/Upper Caves | Entered another Upper Caves area 12550 | -4/Upper Caves | Learned 12 Research zone layouts 12596 | -4/Upper Caves | Learned 4 Research zone layouts 12624 | -4/Upper Caves | Spotted B-86 Titan 12656 | -4/Upper Caves | Attracted the attention of an 0b10 checkpoint 12666 | -4/Upper Caves | Discovered new exit (range 15) 12669 | -4/Upper Caves | Identified exit to Warlord 12669 | -4/Upper Caves | Entered Warlord 12681 | -4/Warlord | System corruption cleaned by Quarantine Array 12700 | -4/Warlord | Met Warlord 12703 | -4/Warlord | Opened Warlord's prototype stash 12705 | -4/Warlord | Build established: Hacker-Sprinter 12709 | -4/Warlord | Found Prototype Device 12709 | -4/Warlord | Identified Exp. Cloaking Device 12712 | -4/Warlord | Found Prototype Processor 12712 | -4/Warlord | Identified Spectral Analyzer 12714 | -4/Warlord | Found Prototype Device 12714 | -4/Warlord | Identified System Purifier 12725 | -4/Warlord | Warlord's base attacked by MAIN.C 12755 | -4/Warlord | Learned Factory fabricator intel 12755 | -4/Warlord | Learned Factory repair station intel 12755 | -4/Warlord | Learned Armory scanalyzer intel 12755 | -4/Warlord | Learned 4 Armory zone layouts 12755 | -4/Warlord | Learned 4 Access zone layouts 12755 | -4/Warlord | Learned Armory trap positions 12762 | -4/Warlord | Found Prototype Piercing Weapon 12764 | -4/Warlord | Identified Vortex Lance 12765 | -4/Warlord | Found Prototype Energy Cannon 12765 | -4/Warlord | Identified Vortex Cannon 12768 | -4/Warlord | Found Vortex Cannon 12966 | -4/Warlord | Spotted B-90 Cyclops 13075 | -4/Warlord | Warlord forces counterattacked 13150 | -4/Warlord | Opened side exit 13155 | -4/Warlord | Discovered new exit (range 9) 13156 | -4/Warlord | Identified exit to Proximity Caves 13158 | -4/Warlord | Entered Proximity Caves 13312 | -3/Proximity Caves | Spotted B-86 Titan 13314 | -3/Proximity Caves | Discovered new exit (range 21) 13325 | -3/Proximity Caves | Identified exit to Research 13325 | -3/Proximity Caves | Entered Research 13325 | -3/Research | Evolved 2 slots: Power x1, Utility x1 13326 | -3/Research | Identified exit to Research 13327 | -3/Research | Identified exit to Quarantine 13329 | -3/Research | Loaded intel: 2 garrison access locations 13423 | -3/Research | Mak. System Shield fried by hacking feedback 13443 | -3/Research | Incoming investigation squad redirected 13537 | -3/Research | Incoming investigation squad redirected 13590 | -3/Research | Spotted B-86 Titan 13742 | -3/Research | Entered another Research area 13742 | -2/Research | Warlord forces began assault on 0b10 13742 | -2/Research | Evolved 2 slots: Propulsion x1, Utility x1 13852 | -2/Research | Research machine network offline 13857 | -2/Research | Spotted B-90 Cyclops 13887 | -2/Research | Discovered new exit (range 22) 13923 | -2/Research | Identified exit to Testing 14028 | -2/Research | Discovered exit to Testing (range 14) 14037 | -2/Research | P-80 Master assimilated allied ND-OV2(S) 14125 | -2/Research | Met up with Warlord 14152 | -2/Research | Spotted Striker 14176 | -2/Research | Borebot progress halted 14195 | -2/Research | Entered Testing 14196 | -2/Testing | Maximum security lockdown engaged 14281 | -2/Testing | Found Prototype Launcher 14281 | -2/Testing | Identified Ragnarok Missile Launcher 14286 | -2/Testing | Found Prototype Launcher 14286 | -2/Testing | Identified Adv. Micro-nuke Launcher 14308 | -2/Testing | Unstable Terrabomb Derivative detonated 14311 | -2/Testing | Spotted Striker 14311 | -2/Testing | Spotted Striker 14367 | -2/Testing | Discovered new exit (range 23) 14376 | -2/Testing | Entered Access 14376 | -1/Access | Evolved 2 slots: Propulsion x1, Utility x1 14462 | -1/Access | Build established: Wizard-Ninja 14547 | -1/Access | Spotted B-99 Colossus 14593 | -1/Access | Adv. Hacking Suite fried by hacking feedback 14679 | -1/Access | Found Prototype Hackware 14679 | -1/Access | Identified Exp. Hacking Suite 14697 | -1/Access | Discovered new exit (range 8) 14715 | -1/Access | Spotted B-99 Colossus 14715 | -1/Access | Spotted B-99 Colossus 14752 | -1/Access | Entered Command 14802 | -1/Command | Disengaged cave seal 14822 | -1/Command | Welcomed Warlord to Command 14893 | -1/Command | Build established: Hacker-Ninja 14929 | -1/Command | Spotted B-99 Colossus 15119 | -1/Command | Spotted M Guard 15119 | -1/Command | Spotted M Guard 15119 | -1/Command | Spotted Combat Programmer 15119 | -1/Command | Spotted Combat Programmer 15184 | -1/Command | Warlord commented on Warlord statues 15223 | -1/Command | Met MAIN.C 15233 | -1/Command | Destroyed Combat Programmer 15248 | -1/Command | Warlord destroyed during the assault 15250 | -1/Command | Destroyed Combat Programmer 15293 | -1/Command | Lost 16 parts (3p7n3u3w) 15302 | -1/Command | First assault squad dispatched 15327 | -1/Command | Incoming assault squad redirected 15555 | -1/Command | Identified Transdimensional Reconstructor 15555 | -1/Command | Failed to warp due to unstable space 15559 | -1/Command | Core integrity fell below 50% 15605 | -1/Command | Lost 10 parts (2p7n1u) 15763 | -1/Command | Spotted Alpha 7 15767 | -1/Command | Spotted Striker 15768 | -1/Command | Spotted Executioner 15768 | -1/Command | Spotted Executioner 15787 | -1/Command | Search patrols dispatched 15803 | -1/Command | Lost 3 parts (2n1u) 15944 | -1/Command | 0b10 Conduit disabled 15959 | -1/Command | Core integrity fell below 20% 15977 | -1/Command | Destroyed by MAIN.C with Heavy Quantum Rifle Last Messages --------------- 15847_ Dropped Neutrino Core. 15848_ Acquired Lgt. Particle Reactor. 15849_ Acquired Imp. Kinecellerator. 15851_ Dropped Imp. Kinecellerator. 15873_ Acquired 20 matter. 15887_ System corrupted: Heat flow error (+107). 15890_ Imp. Reaction Control System destroyed. 15923_ Imp. Diametric Drive destroyed. 15927_ Door malfunctions. 15930_ Slug penetrates MAIN.C. 15930_ Field Propulsion Array destroyed. 15932_ Slug penetrates MAIN.C. 15944_ 0b10 Conduit disabled. 15947_ Lgt. Particle Reactor destroyed. 15947_ Adv. Medium Treads destroyed. 15954_ KE Penetrator destroyed. 15954_ Spk. Medium Treads destroyed. 15957_ System corrupted: Substantial component data lost. 15970_ Thunder Hammer destroyed. 15976_ Slammed into MAIN.C. Map ----- +----------------------------------------------------+ | ?????????????????????????????????????????????????? | | ?????????????????????????????????????????????????? | | ?????????????????????????????????????????????????? | | ?????????????????????????????????????????????????? | | ?????????????????????????????????????????????????? | | ?????????????????????????????????????????????????? | | ?????????????????????????????????????????????????? | | ?????????????????????????????????????????????????? | | ?????????????????????????????????????????????????? | | ?????????????????????????????????????????????????? | | ?????????????????????????????????????????????????? | | ?????????????????????????????????????????????????? | | ?????????????????????????????????????????????????? | | ?????????????????????????????????????????????????? | | ????????????????######################???????????? | | ???????????????#""""""" """" #???????????? | | ???????????????#"" "" #???????????? | | ???????????????#""""" "" ############# | | ???????????????#""""""""""" / | | ???????????????#" " " " / | | ???????????????#"" """""" ; | | ???????????????#"" """""" ############# | | ???????????????# " """""" #???????????? | | ???????????????# " ""MMM #???????????? | | ???????????????# " " MMM ""#???????????? | | ???????????????#""""""" @MMM """""""#???????????? | | ???????????????#"" """""""""#???????????? | | ???????????????# """""""""""#???????????? | | ???????????????# " " " " #???????????? | | ???????????????# " " " " #???????????? | | ???????????????" " " " """" " #???????????? | | ???????????????" """ " " """" #???????????? | | ???????????????" " " " " #???????????? | | ???????????????# """""""""" " #???????????? | | ???????????????# " """ " """"""""#???????????? | | ???????????????# """ " " " ????????????? | | ???????????????#####################?????????????? | | ?????????????????????????????????????????????????? | | ?????????????????????????????????????????????????? | | ?????????????????????????????????????????????????? | | ?????????????????????????????????????????????????? | | ?????????????????????????????????????????????????? | | ?????????????????????????????????????????????????? | | ?????????????????????????????????????????????????? | | ?????????????????????????????????????????????????? | | ?????????????????????????????????????????????????? | | ?????????????????????????????????????????????????? | | ?????????????????????????????????????????????????? | | ?????????????????????????????????????????????????? | | ?????????????????????????????????????????????????? | +----------------------------------------------------+ Best States ------------- Heat Dissipation 122 Energy Generation 49 Energy Capacity 430 Matter Stores 383 Matter Capacity 400 Sight Range 24 Terrain Scan Range 14 Terrain Scan Density 10 ECM Strength 2 Jamming Range 16 Cloak Strength 4 Power Amplification 30 Armor Coverage 375 Resistance: TH 20 Propulsion Shielding 66 Point Defense Rating 160 Evasion (%) 76 Targeting Accuracy 8 Target Analysis 8 Recoil Reduction 3 Kinecelleration 40 Offensive Hacking 54 Defensive Hacking 28 Authchip Count 2 Item Schematics ----------------- Combat Drone Bay | -7/Data Miner | Free Lgt. Regenerative Plating | -7/Data Miner | Free Cld. Cesium-ion Thruster | -7/Data Miner | Free Gravity Neutralizer | -7/Data Miner | Free Imp. Heavy Laser | -7/Data Miner | Free Arm. Medium Treads | -7/Data Miner | Free Imp. Thermal Shield | -7/Data Miner | Free Lrn. Proton Cannon | -7/Data Miner | Free Focal Shield | -7/Data Miner | Free Imp. Component Analysis Suite | -7/Data Miner | Free HERF Cannon | -7/Data Miner | Free Centrium Wheel | -7/Data Miner | Free Assault Drone Bay | -5/Zhirov | Free Exp. Optical Array | -5/Zhirov | Free Imp. Arc Thrower | -5/Zhirov | Free Exp. Heat Sink | -5/Zhirov | Free Robot Schematics ------------------ E-15 Imp | -7/Data Miner | Free H-66 Slayer | -7/Data Miner | Free G-47 Trooper | -7/Data Miner | Free L-41 Fighter | -7/Data Miner | Free G-50 Soldier | -7/Data Miner | Free A-15 Conveyor | -7/Data Miner | Free Fabricated ------------ Nothing Alien Tech Used ----------------- Integrated Dissipator Transdimensional Reconstructor Achievements -------------- Meet Your Maker No Explosion For You No Signal Speed Demon Challenges ------------ None Game ------ Seed QuantumControlRifle Manual? 0 Play Time 07:28:22 Cumulative 157.3 hours Start 2023.09.14 @ 16:03:20 End 2023.09.15 @ 23:23:49 Sessions 15 Manual Loads 0 Difficulty Rogue Special Mode None Game No. 98 Rogue 98 Adventurer 0 Explorer 0 Win Type - Total 3 Types 2/0/1/0/0/0/0/0/0 Lore% 49 Gallery% 48 Achievement% 47 Wizard Run 0 Options --------- ASCII 0 Keyboard 0 Movement Mouse Keybinds 0 Fullscreen 1 Font 16/SmallcapsGlow Map View 82x54 Tactical HUD 1 Map Filters NONE Filters NONE Steam X RUN: 8f68c605-e378-4be6-a924-b293f12c2ad8